Cogmind - Beta 14 @@@ ROGUE MODE // 2024.09.02 @ 16:33:33 Player: Coronach Result: Self-destructed Performance ------------- Evolutions (1) 500 Regions Visited (2) 400 Robots Destroyed (11) 55 Value Destroyed (142) 142 Prototype IDs (2) 40 Alien Tech Used (0) 0 Bonus (0) 0 TOTAL SCORE: 1137 Bonus ------- None Cogmind --------- Core Integrity 361/400 Matter 290/300 Energy 250/250 System Corruption 0% Temperature Cool (0) Movement Treading (160) Location -9/Materials Parts ------- > --- POWER (1) -------- Ion Engine > --- PROPULSION (2) --- Light Treads Light Treads > --- UTILITY (4) ------ Small Storage Unit Improved Terrain Scanner Seismic Detector Hacking Suite > --- WEAPON (2) ------- Improved EM Shotgun Assault Rifle > --- INVENTORY (8) ---- Light Ion Engine Improved Ion Engine Light Treads Compact Wheel Sensor Array Light Armor Plating Grenade Launcher Mining Laser Peak State ------------ > --- POWER ------------ Ion Engine > --- PROPULSION ------- Light Treads Light Treads > --- UTILITY ---------- Small Storage Unit Improved Terrain Scanner Seismic Detector Hacking Suite > --- WEAPON ----------- Improved EM Shotgun Assault Rifle > --- INVENTORY -------- Light Ion Engine Improved Ion Engine Light Treads Compact Wheel Sensor Array Light Armor Plating Grenade Launcher Mining Laser [Rating: 15] Favorites ----------- Power Ion Engine Engine Ion Engine Propulsion Light Treads Treads Light Treads Leg Aluminum Leg Utility Improved Terrain Scanner Device Improved Terrain Scanner Storage Small Storage Unit Hackware Hacking Suite Weapon Assault Rifle Energy Gun Medium Laser Ballistic Gun Assault Rifle Build | -11 -10 -9 ------- Run | Yrd Mat Mat Slots Evolved 2 | . . 2 Power . | . . . Propulsion . | . . . Utility 2 | . . 2 Weapon . | . . . Parts Attached 11 | 5 . 6 Power . | . . . Engine . | . . . Core . | . . . Reactor . | . . . Propulsion 3 | 2 . 1 Treads 3 | 2 . 1 Leg . | . . . Wheel . | . . . Hover . | . . . Flight . | . . . Utility 5 | 2 . 3 Device 3 | 2 . 1 Storage 1 | . . 1 Processor . | . . . Hackware 1 | . . 1 Protection . | . . . Artifact . | . . . Weapon 3 | 1 . 2 Energy Gun 2 | . . 2 Energy Cannon . | . . . Ballistic Gun 1 | 1 . . Ballistic Cannon . | . . . Launcher . | . . . Special Weapon . | . . . Impact Weapon . | . . . Slashing Weapon . | . . . Piercing Weapon . | . . . Special Melee Weapon . | . . . Unidentified Prototypes 2 | . . 2 Parts Lost 1 | . . 1 Power . | . . . Propulsion . | . . . Utility . | . . . Weapon 1 | . . 1 Highest Loss Streak 1 | . . 1 To Critical Strikes . | . . . Average Slot Usage (%) 98 | . 100 97 Engine 12 | . 14 11 Treads 25 | . 28 22 Device 30 | . 28 32 Storage 5 | . . 11 Energy Gun 11 | . 14 8 Ballistic Gun 12 | . 14 11 Peak Build Rating 15 | 9 9 15 Average Rating 9 | 6 9 11 On Entrance 8 | 6 9 9 Naked Turns . | . . . Heaviest Build 18 | 11 11 18 Greatest Support 40 | 40 40 40 Greatest Overweight (x) . | . . . Average Overweight (x) . | . . . Largest Inventory Capacity 8 | 8 5 8 Average Capacity 6 | 5 5 7 Most Carried 8 | 5 5 8 Average Carried 4 | 2 3 4 Final Capacity 8 | 5 5 8 Final Carried 8 | 3 5 8 Class Distribution -------------------- 81% | Mutant 18% | Scavenger-Mutant Dominant Class ---------------- Mutant | -10/Materials Mutant | -9/Materials Resources | -11 -10 -9 ----------- Run | Yrd Mat Mat Matter Collected 373 | 256 15 102 Remotely . | . . . Salvage Created 297 | 68 50 179 Parts 23 | 6 5 12 Haulers Intercepted 1 | . . 1 Recyclers Shooed . | . . . Parts Field Recycled . | . . . Retrieved Matter . | . . . Parts Self-Destructed . | . . . Prevented . | . . . Kills | -11 -10 -9 ------- Run | Yrd Mat Mat Combat Hostiles Destroyed 6 | . 2 4 Guns 6 | . 2 4 Classes Destroyed 7 | 2 2 3 Tunneler 1 | 1 . . Hauler 1 | . . 1 Recycler 1 | 1 . . Operator 1 | . . 1 Watcher 1 | . 1 . Swarmer 5 | . 2 3 Sentry 1 | . . 1 Best Kill Streak 4 | 2 3 4 Combat Bots Only 3 | . 2 3 Max Kills in Single Turn 2 | 2 2 1 Gunslinging 1 | . 1 . Exploded . | . . . Melee . | . . . Uniques/NPCs Destroyed . | . . . Combat | -11 -10 -9 -------- Run | Yrd Mat Mat Hostile Shots Fired 36 | . 10 26 Missed 10 | . 1 9 Damage Taken 234 | . 71 163 Core 60 | . 21 39 Absorbed by Shields . | . . . Core Remaining (%) 95 | 100 91 . Volleys Fired 21 | 2 5 14 Largest 2 | 2 2 2 Hottest 70 | 70 70 70 Shots Fired 42 | 4 10 28 Gun 42 | 4 10 28 Cannon . | . . . Launcher . | . . . Special . | . . . Kinetic 21 | 2 5 14 Thermal 16 | 2 5 9 Explosive . | . . . Electromagnetic 5 | . . 5 Robot Hit Streak 18 | 1 5 18 Robot Miss Streak 5 | 1 2 5 Penetration Max . | . . . Secondary Targets 1 | . 1 . Max Gunslinging Chain 1 | . 1 . Shots Hit Robots 26 | 2 7 17 Core Hits 15 | 3 3 9 Critical Kills . | . . . Critical Parts Destroyed . | . . . Critical Strikes 1 | . . 1 Burn 1 | . . 1 Melee Attacks . | . . . Impact . | . . . Slashing . | . . . Piercing . | . . . Sneak Attacks . | . . . Combat Hostiles . | . . . Follow-up Attacks . | . . . Damage Inflicted 365 | 38 91 236 Guns 365 | 38 91 236 Cannons . | . . . Explosions . | . . . Melee . | . . . Ramming . | . . . Kinetic 204 | 26 41 137 Thermal 86 | 12 50 24 Explosive . | . . . Electromagnetic 75 | . . 75 Impact . | . . . Slashing . | . . . Piercing . | . . . Highest Corruption . | . . . Average Corruption . | . . . Corruption Purged . | . . . Corruption Blocked . | . . . Overload Shots . | . . . Overflow Damage . | . . . Projectiles . | . . . Explosions . | . . . Melee . | . . . Knockbacks . | . . . Impact . | . . . Kinetic . | . . . Secondary . | . . . Self-Inflicted Damage . | . . . Shots . | . . . Rammed . | . . . Targets Rammed . | . . . Kicked . | . . . Crushed . | . . . Highest Temperature 36 | 18 36 10 Average Temperature 12 | 10 16 5 Received Heat Transfer 27 | . . 27 Siege Activations . | . . . Robots Corrupted . | . . . Combat Hostiles . | . . . Parts Fried 1 | . . 1 Impact Corruptions . | . . . Robots Melted . | . . . Combat Hostiles . | . . . Parts Melted . | . . . Heat Transferred 333 | 37 148 148 Parts Sabotaged . | . . . Parts Stolen . | . . . Parts Stripped . | . . . Power Chain Reactions . | . . . Alert | -11 -10 -9 ------- Run | Yrd Mat Mat Peak Influence 214 | 10 53 214 Initial 22 | . 6 22 Average 64 | 7 18 127 Maximum Alert Level 1 | . . 1 Low Security (%) 98 | 100 100 97 Level 1 1 | . . 2 Level 2 . | . . . Level 3 . | . . . Level 4 . | . . . Level 5 . | . . . High Security . | . . . Max Security . | . . . Squads Dispatched . | . . . Investigation . | . . . Extermination . | . . . Reinforcement . | . . . Assault . | . . . Garrison . | . . . Intercept . | . . . Searches Triggered . | . . . Construction Impeded . | . . . Haulers Reinforced . | . . . Active Scanning Responses . | . . . Cargo Convoy Interrupts . | . . . Stealth | -11 -10 -9 --------- Run | Yrd Mat Mat Distress Signals 1 | . 1 . Communications Jammed . | . . . Distress Signals . | . . . Times Spotted 10 | . 3 7 Peak Tracking Total 3 | . 3 3 Tactical Retreats 1 | . . 1 Traps | -11 -10 -9 ------- Run | Yrd Mat Mat Traps Triggered . | . . . Indirectly . | . . . Trap Hack Attempts . | . . . Triggered . | . . . Disarmed . | . . . Reprogrammed . | . . . Reused . | . . . Traps Extracted . | . . . Installed . | . . . Triggered . | . . . Machines | -11 -10 -9 ---------- Run | Yrd Mat Mat Machines Disabled . | . . . Max in Single Turn . | . . . Machines Repaired . | . . . Machines Dismantled . | . . . Machines Sabotaged . | . . . Overloaded Fab Kills . | . . . Hacking | -11 -10 -9 --------- Run | Yrd Mat Mat Machines Accessed 1 | . . 1 Terminals 1 | . . 1 Fabricators . | . . . Repair Stations . | . . . Recycling Units . | . . . Scanalyzers . | . . . Garrison Access . | . . . Total Hacks 2 | . . 2 Successful . | . . . Failed 2 | . . 2 Catastrophic 1 | . . 1 Database Lockouts . | . . . Manual 2 | . . 2 Terminals 2 | . . 2 Fabricators . | . . . Repair Stations . | . . . Recycling Units . | . . . Scanalyzers . | . . . Garrison Access . | . . . Terminal Hacks . | . . . Fabricator Hacks . | . . . Repair Station Hacks . | . . . Recycling Unit Hacks . | . . . Scanalyzer . | . . . Garrison Access Hacks . | . . . Unauthorized Hacks . | . . . Terminals . | . . . Fabricators . | . . . Repair Stations . | . . . Recycling Units . | . . . Scanalyzers . | . . . Garrison Access . | . . . Data Cores Recovered . | . . . Used . | . . . Hacking Detections 1 | . . 1 Full Trace Events . | . . . Feedback Events . | . . . Feedback Blocked . | . . . Robot Schematics Acquired . | . . . Robots Built . | . . . Authchips . | . . . Time . | . . . Total Robot Build Rating . | . . . Part Schematics Acquired . | . . . Parts Built . | . . . Authchips . | . . . Time . | . . . Total Part Build Rating . | . . . Parts Repaired . | . . . Time . | . . . Parts Recycled . | . . . Recycled Matter . | . . . Retrieved Matter . | . . . Retrieved Components . | . . . Parts Scanalyzed . | . . . Part Schematics Acquired . | . . . Parts Damaged . | . . . Bothacking | -11 -10 -9 ------------ Run | Yrd Mat Mat Used RIF Installer . | . . . Robots Hacked . | . . . Non-combat . | . . . Combat . | . . . Robot Hacks Applied . | . . . Relay Couplers Released . | . . . Fabnet Peak Effective % . | . . . Robots Rewired . | . . . Allies Hacked . | . . . Hacks Repelled . | . . . Allies | -11 -10 -9 -------- Run | Yrd Mat Mat Total Allies . | . . . Largest Group . | . . . Highest-Rated Group . | . . . Highest-Rated Ally . | . . . Total Orders . | . . . Ally Attacks . | . . . Total Damage . | . . . Kills . | . . . Allies Corrupted . | . . . Allies Melted . | . . . Intel | -11 -10 -9 ------- Run | Yrd Mat Mat Robot Analysis Total . | . . . Derelict Logs Recovered . | . . . Drone Launches . | . . . Drone Recoveries . | . . . Exploration | -11 -10 -9 ------------- Run | Yrd Mat Mat Turns Passed 488 | 47 232 209 Spaces Moved 199 | 19 129 51 Core . | . . . Treads 199 | 19 129 51 Legs . | . . . Wheels . | . . . Hover . | . . . Flight . | . . . Fastest Speed 160 | 160 160 160 Average Speed 160 | 160 160 160 Slowest Speed 160 | 160 160 160 Overloaded Moves . | . . . Propulsion Burnouts . | . . . Robots Hopped . | . . . Cave-ins Triggered . | . . . Exploration Rate (%) 13 | 3 29 8 Regions Visited 2 Branch Regions . Pre-discovered Areas . | . . . Known Exits Taken . | . . . Unknown Exits Taken 2 | 1 1 . Scrap Searched . | . . . Spaces Dug . | . . . Terrain Destroyed . | . . . Melee . | . . . Projectile . | . . . AOE . | . . . Terrain Rammed . | . . . Walls Destroyed . | . . . Machines Disabled . | . . . Actions | -11 -10 -9 --------- Run | Yrd Mat Mat Total 327 | 32 145 150 Wait 77 | . 10 67 Move 197 | 18 128 51 Hop . | . . . Pick Up 9 | 1 2 6 Fast Attach 4 | 2 . 2 Attach 3 | . . 3 Detach 3 | 1 . 2 Swap 5 | 3 . 2 Drop 8 | 5 . 3 Fire 21 | 2 5 14 Melee . | . . . Ram . | . . . Kick . | . . . Crush . | . . . Escape Stasis . | . . . Rewire . | . . . Trap . | . . . Miscellaneous . | . . . Route ------- -11/Scrapyard -10/Materials -9/Materials History --------- Turn | Location | Event 15 | -11/Scrapyard | Discovered new exit (range 3) 48 | -11/Scrapyard | Entered Materials 225 | -10/Materials | Discovered new exit (range 8) 280 | -10/Materials | Entered another Materials area 280 | -9/Materials | Evolved 2 slots: Utility x2 308 | -9/Materials | Build established: Mutant 489 | -9/Materials | Self-destructed Last Messages --------------- 00398_ Faulty integration triggers energy drain (-135). 00401_ Dropped Faulty Imp. Medium Laser. 00401_ Dropped Med. Laser. 00403_ Acquired Faulty Imp. EM Shotgun. 00406_ Acquired Imp. EM Shotgun. 00407_ Dropped Faulty Imp. EM Shotgun. 00413_ Acquired 33 matter. 00426_ Acquired Hacking Suite. 00427_ Acquired data core, dynamic key expired. 00430_ Acquired Lgt. Ion Engine. 00451_ Electrolysis Chamber disabled. 00462_ Heat Sink fried. 00462_ Y-45 Defender destroyed. 00462_ Door malfunctions. 00467_ Acquired 25 matter. 00472_ Acquired Imp. Ion Engine. 00475_ Acquired Lgt. Armor Plating. 00479_ Connecting with Terminal... 00479_ Current location identified: Materials 00481_ Connecting with Terminal... Map ----- +----------------------------------------------------+ | ???????????????????????????????? | | ???????????????????????????????? | | ???????????????????????????????? | | ???????????????????????????????? | | ???????????????????????????????? | | ???????????????????????????????? | | ???????????????????????????????? | | ???????????????????????????????? | | ???????????????????????????????? | | ??????????????????????? ???????? | | ??????????????????????? ???????? | | ??????????????????????? ???????? | | ??????????????????#???? ??????#? | | ?????????????#######??# ???????? | | ????????????? ??# ?????#?? | | ????????????? ?## #??????? | | ?????????+ """ ??# #???#??? | | ?????????# """ ??# #??????? | | ?????????? """ ??# #??????? | | ?????????? #??# #??????? | | ?????????# #??#u#?#????? | | ??????#### """ ####u###????? | | ?????? """ # #????? | | ?????????# "" # T #????? | | ?????????# # #????? | | ?????????# =#u [[ @##???? | | ?????????# """ %+ [ #?#?? | | ????#???## """ [# ##???? | | ??????#??# """ #########???? | | ??? ???#?# % ##?????????? | | ??????#### ###???##???? | | ???? ?# """ #?#?#???##?# | | ???? ?# """ ##??##???##? | | ?????## """ #????#????#? | | ?????# ##??#????#?## | | ???? + #???#???????? | | ?????# """ =##?#????????? | | ?????## """ [%[#########???? | | ?????## """ ![=# #????? | | ??????# # """##???? | | ?????+ [#[ """#????# | | ?????###### %+= """##?#?? | | ???????#??###### =# #????? | | ????##????##??## # #????# | | ?????????????##############????? | | ?????#??????????#????#????#????? | | ???????????????????#??????#?#??? | | ???????????????##??????????????? | | ????????????#?#?#??????????#???? | | ???????##??????????????????????? | +----------------------------------------------------+ Best States ------------- Heat Dissipation 28 Energy Generation 10 Energy Capacity 250 Matter Stores 300 Matter Capacity 300 Sight Range 16 Robot Scan Range 14 Terrain Scan Range 16 Terrain Scan Density 10 Evasion (%) 40 Recoil Reduction 2 Offensive Hacking 10 Item Schematics ----------------- None Robot Schematics ------------------ None Fabricated ------------ Nothing Alien Tech Used ----------------- None Achievements -------------- None Challenges ------------ None Game ------ Seed LatentProjectionTriangulator Manual? 0 Play Time 00:09:54 Cumulative 228.8 hours Start 2024.09.02 @ 16:24:01 End 2024.09.02 @ 16:33:33 Sessions 1 Manual Loads 0 Difficulty Rogue Special Mode None Game No. 91 Rogue 88 Adventurer 0 Explorer 3 Win Type - Total 3 Types 2/0/0/1/0/0/0/0/0 Lore% 29 Gallery% 63 Achievement% 51 Wizard Run 0 Options --------- Layout 2 ASCII 0 Keyboard 1 Movement Numpad Keybinds 0 Fullscreen 2 Font 24/Terminus Map View 76x44 Zoom Use 0% Tactical HUD 1 Map Filters NONE Filters NONE Steam 1 RUN: f38810b4-f0a9-4470-9cf6-855cc6a0eb21